bitfinex/quotes_SOLUSD_20250714
["timestamp","ask_amount","ask_price","bid_price","bid_amount"]
[1752466147319,0.72,167.11,167.09,31.3]
[1752466147515,10.28804659,167.12,167.09,31.3]
[1752466147714,11.00804659,167.12,167.09,31.3]
[1752466148026,37.00804659,167.12,167.09,31.3]
[1752466149411,26.0,167.12,167.09,31.3]
[1752466149612,26.0,167.12,167.1,0.66]
[1752466149910,37.00804659,167.12,167.11,31.3]
[1752466150703,36.28804659,167.12,167.11,31.3]
[1752466151715,26.0,167.12,167.11,31.3]
[1752466151916,25.61065467,167.12,167.11,31.3]
[1752466152513,1.6058,167.17,167.11,42.24804659]
[1752466152702,10.28804659,167.16,167.11,31.96]
[1752466152901,11.00804659,167.16,167.11,31.96]
[1752466153105,10.28804659,167.16,167.12,0.66]
[1752466153330,1.6058,167.17,167.13,31.96]
[1752466153537,10.28804659,167.16,167.14,31.3]
[1752466153939,2.3258,167.17,167.14,31.3]
[1752466154158,11.89384659,167.17,167.14,31.96]
[1752466154333,12.61384659,167.17,167.14,31.3]
[1752466155043,7.92316105,167.17,167.14,31.96]
[1752466155212,0.06,167.17,167.14,31.96]
[1752466155420,6.31736105,167.15,167.1,0.66]
[1752466155617,6.31736105,167.13,167.11,31.3]
[1752466155934,7.03736105,167.13,167.11,31.3]
[1752466156618,0.72,167.13,167.11,31.3]
[1752466156808,7.03736105,167.13,167.11,31.3]
[1752466157921,6.31736105,167.12,167.11,31.3]
[1752466158839,6.31736105,167.12,167.11,31.28]
[1752466159139,7.03736105,167.12,167.11,31.28]
[1752466159318,0.72,167.12,167.11,31.28]
[1752466159631,7.03736105,167.12,167.11,31.28]
[1752466160928,11.91031304,167.12,167.11,31.28]
[1752466161320,7.03736105,167.12,167.11,31.28]
[1752466164921,0.72,167.12,167.11,31.28]
[1752466165246,6.31736105,167.12,167.11,31.28]
[1752466165621,4.83029928,167.13,167.11,31.28]
[1752466165838,6.31736105,167.13,167.11,31.28]
[1752466166024,6.31736105,167.12,167.11,31.28]
[1752466166720,7.18791241,167.14,167.11,31.28]
[1752466166928,6.31736105,167.12,167.11,31.28]
[1752466167911,6.31736105,167.14,167.11,31.94]
[1752466168116,0.72,167.16,167.11,31.94]
[1752466168335,6.31736105,167.14,167.12,0.66]
[1752466168516,32.31736105,167.14,167.12,0.66]
[1752466168721,32.31736105,167.14,167.11,31.28]
[1752466168919,32.31736105,167.14,167.11,31.94]
[1752466169333,26.0,167.12,167.11,31.28]
[1752466169518,32.31736105,167.12,167.11,31.28]
[1752466171939,32.31736105,167.12,167.11,31.31]
[1752466172642,49.79204502,167.12,167.11,31.31]
[1752466172840,49.93420659,167.12,167.11,31.31]
[1752466173439,56.19590659,167.12,167.11,31.31]
[1752466173647,66.19590659,167.12,167.11,31.31]
[1752466174936,67.71840659,167.12,167.11,31.31]
[1752466175444,73.70213085,167.12,167.08,0.03]
[1752466175748,23.24420659,167.09,167.08,0.03]
[1752466176048,33.24420659,167.09,167.08,0.03]
[1752466176258,33.93420659,167.09,167.08,0.03]
[1752466176875,33.93420659,167.09,167.08,31.31]
[1752466177153,23.93420659,167.09,167.08,31.31]
[1752466177349,33.93420659,167.09,167.08,31.31]
[1752466178023,23.93420659,167.09,167.08,31.31]
[1752466178227,33.93420659,167.09,167.08,31.31]
[1752466178667,17.61684554,167.09,167.08,31.31]
[1752466178866,23.24420659,167.09,167.08,31.31]
[1752466179035,23.93420659,167.09,167.08,31.31]
[1752466179228,16.92684554,167.09,167.08,31.31]
[1752466179532,23.24420659,167.09,167.08,31.31]
[1752466181350,16.92684554,167.1,167.08,32.0]
[1752466181576,23.24420659,167.1,167.08,32.0]
[1752466181758,6.31736105,167.09,167.08,32.0]
[1752466182670,16.78468397,167.11,167.08,32.0]
[1752466182981,23.10204502,167.11,167.09,0.69]
[1752466183155,6.31736105,167.1,167.09,0.69]
[1752466183876,0.14216157,167.11,167.09,0.69]
[1752466184057,16.78468397,167.12,167.09,0.69]
[1752466184058,6.31736105,167.1,167.09,0.69]
[1752466185763,6.31736105,167.12,167.09,0.69]
[1752466185958,6.31736105,167.12,167.1,0.69]
[1752466186182,6.31736105,167.12,167.11,31.26]
[1752466187769,0.14216157,167.13,167.11,31.26]
[1752466187958,6.45952262,167.13,167.11,31.26]
[1752466188159,17.53468397,167.14,167.11,31.95]
[1752466188367,6.31736105,167.13,167.11,31.95]
[1752466188664,6.31736105,167.12,167.11,0.69]
[1752466188986,6.31736105,167.12,167.11,31.26]
[1752466189192,16.84468397,167.14,167.11,31.95]
[1752466189384,0.06,167.14,167.12,0.69]
[1752466189570,6.31736105,167.13,167.11,31.26]
[1752466189773,6.31736105,167.13,167.11,31.95]
[1752466190576,6.31736105,167.13,167.11,31.26]
[1752466191173,6.31736105,167.12,167.11,31.26]
[1752466191376,6.31736105,167.13,167.11,31.26]
[1752466193986,0.06,167.14,167.12,7.00736105]
[1752466194169,0.06,167.14,167.13,6.31736105]
[1752466194369,0.06,167.14,167.13,7.00736105]
[1752466199984,0.06,167.14,167.13,13.3247221]
[1752466201085,0.06,167.14,167.13,0.69]
[1752466201398,0.06,167.14,167.13,38.22736105]
[1752466201594,0.06,167.14,167.11,0.73]
[1752466201781,0.06,167.14,167.12,31.22]
[1752466201980,0.69,167.13,167.12,31.22]
[1752466202197,0.06,167.14,167.12,31.22]
[1752466202198,6.37736105,167.14,167.12,31.22]
[1752466202498,0.06,167.14,167.12,31.92]
[1752466203090,0.06,167.14,167.13,0.7]
[1752466203597,0.06,167.14,167.12,31.22]
[1752466203799,0.06,167.14,167.12,31.92]
[1752466204092,0.06,167.14,167.13,0.7]
[1752466204505,26.06,167.14,167.13,0.7]
[1752466205615,26.06,167.14,167.12,31.22]
[1752466205772,0.06,167.14,167.12,31.92]
[1752466206601,6.31736105,167.13,167.12,31.22]
[1752466206806,7.06736105,167.14,167.12,31.22]
[1752466209599,0.06,167.14,167.12,31.22]
[1752466209778,0.06,167.14,167.12,31.92]
[1752466210908,0.06,167.14,167.13,0.7]
[1752466211208,0.06,167.14,167.12,31.22]
[1752466211510,0.06,167.14,167.12,31.92]
[1752466213207,0.06,167.14,167.13,0.7]
[1752466215113,0.06,167.14,167.12,31.22]
[1752466215291,0.06,167.14,167.12,31.92]
[1752466217006,0.06,167.14,167.13,0.7]
[1752466217309,0.06,167.14,167.12,31.92]
[1752466217682,7.06736105,167.14,167.12,31.22]
[1752466218613,0.06,167.14,167.12,31.22]
[1752466219204,0.06,167.14,167.13,0.7]
[1752466222518,0.06,167.14,167.12,31.22]
[1752466222714,7.06736105,167.14,167.12,31.22]
[1752466223334,6.37736105,167.14,167.12,31.22]
[1752466223920,0.06,167.14,167.12,31.22]
[1752466224133,0.06,167.14,167.13,0.7]
[1752466226630,0.06,167.14,167.12,31.22]
[1752466226931,0.06,167.14,167.12,31.92]
[1752466227233,0.06,167.14,167.12,31.22]
[1752466227438,6.37736105,167.14,167.12,31.22]
[1752466227729,6.37736105,167.14,167.11,0.03]
[1752466227730,7.00736105,167.13,167.11,0.03]
[1752466227937,6.31736105,167.12,167.11,0.03]
[1752466228136,7.00736105,167.12,167.11,31.21]
[1752466231736,49.79204502,167.12,167.11,31.21]
[1752466231934,49.93420659,167.12,167.11,31.21]
[1752466233435,26.69,167.12,167.11,31.21]
[1752466233643,33.00736105,167.12,167.11,31.21]
[1752466235029,49.93420659,167.12,167.11,31.21]
[1752466235237,49.93420659,167.12,167.11,0.03]
[1752466235525,23.93420659,167.12,167.11,31.21]
[1752466235951,23.93420659,167.12,167.08,0.03]
[1752466235952,6.5868,167.1,167.08,0.03]
[1752466236155,23.24420659,167.09,167.08,0.03]
[1752466236318,23.93420659,167.09,167.08,0.03]
[1752466236828,31.08866764,167.07,167.06,25.8]
[1752466237030,0.14216157,167.06,167.04,0.03]
[1752466237217,0.14216157,167.06,167.05,31.16]
[1752466237619,26.92684554,167.05,167.04,0.03]
[1752466237828,33.01174554,167.05,167.04,31.19]
[1752466238038,33.70174554,167.05,167.04,31.19]
[1752466238440,23.70174554,167.05,167.04,31.19]
[1752466238648,30.01910659,167.05,167.04,31.19]
[1752466239439,23.70174554,167.05,167.04,31.19]
[1752466239638,30.01910659,167.05,167.04,31.19]
[1752466239944,46.33646764,167.05,167.04,31.19]
[1752466240133,33.70174554,167.05,167.04,31.19]
[1752466240448,16.78468397,167.03,167.02,0.03]
[1752466240635,23.24420659,167.03,167.02,31.21]
[1752466240942,23.93420659,167.03,167.02,31.21]
[1752466241534,0.14216157,167.02,167.01,0.2]
[1752466241753,59.93420659,167.02,167.01,31.36]
[1752466241933,16.92684554,167.01,167.0,340.0]
[1752466242131,33.93420659,167.01,167.0,227.53354688]
[1752466242643,39.93590659,167.01,167.0,227.53354688]
[1752466243064,186.63590659,167.01,167.0,258.71354688]
[1752466243349,186.63590659,167.01,167.0,250.38034688]
[1752466243735,192.62357199,167.01,167.0,250.38034688]
[1752466243933,192.62357199,167.01,167.0,250.35034688]
[1752466244333,45.92357199,167.01,167.0,217.33582054]
[1752466244534,45.92357199,167.01,167.0,217.13582054]
[1752466245358,45.92357199,167.01,167.0,127.66409376]
[1752466246059,45.92357199,167.01,167.0,127.68409376]
[1752466246060,63.82357199,167.01,167.0,127.68409376]
[1752466247053,63.82357199,167.01,167.0,104.65936742]
[1752466247630,63.82357199,167.01,167.0,104.45936742]
[1752466247846,57.50621094,167.01,167.0,104.45936742]
[1752466248164,16.78468397,166.97,166.95,0.2]
[1752466248474,23.24420659,166.96,166.95,0.2]
[1752466248765,23.93420659,166.96,166.95,0.2]
[1752466249328,23.93420659,166.96,166.95,31.38]
[1752466250132,23.93420659,166.96,166.95,0.2]
[1752466250338,23.93420659,166.96,166.95,31.38]
[1752466251543,17.61684554,166.96,166.95,31.38]
[1752466251747,23.93420659,166.96,166.95,31.38]
[1752466263466,29.92366514,166.96,166.95,0.2]
[1752466263666,30.25156764,166.96,166.95,31.36]
[1752466264041,23.93420659,166.96,166.95,31.36]
[1752466267560,29.92366514,166.96,166.95,31.36]
[1752466268566,29.48534605,166.96,166.95,31.36]
[1752466269274,35.8027071,166.96,166.95,31.36]
[1752466269474,0.14216157,166.93,166.85,0.03]
[1752466269678,10.14216157,166.9,166.89,31.16]
[1752466269877,0.14216157,166.9,166.89,31.16]
[1752466270169,6.45952262,166.9,166.89,31.85]
[1752466270380,7.13952262,166.9,166.85,0.03]
[1752466270671,33.92420659,166.89,166.85,0.03]
[1752466270875,39.56156764,166.86,166.85,0.03]
[1752466271058,39.56156764,166.86,166.77,25.84]
[1752466271059,26.78468397,166.83,166.77,25.84]
[1752466271380,16.78468397,166.78,166.69,0.69]
[1752466271575,0.14216157,166.75,166.69,0.69]
[1752466271891,17.60684554,166.75,166.7,31.16]
[1752466272053,0.14216157,166.75,166.71,0.69]
[1752466272356,0.14216157,166.75,166.72,0.69]
[1752466272554,0.14216157,166.75,166.73,31.16]
[1752466272750,0.14216157,166.75,166.73,31.85]
[1752466272953,23.24420659,166.74,166.73,31.16]
[1752466273157,16.92684554,166.74,166.73,31.16]
[1752466273579,6.31736105,166.76,166.73,31.85]
[1752466273881,0.68,166.81,166.73,31.85]
[1752466273882,23.24420659,166.75,166.74,0.69]
[1752466274178,6.45952262,166.75,166.74,31.16]
[1752466274555,6.45952262,166.75,166.7,0.69]
[1752466274769,23.24420659,166.71,166.7,0.69]
[1752466275077,23.48014554,166.7,166.62,0.69]
[1752466275254,0.14216157,166.65,166.64,0.69]
[1752466275453,6.31736105,166.67,166.64,31.85]
[1752466275653,23.24420659,166.67,166.65,0.69]
[1752466275869,16.92684554,166.67,166.66,0.69]
[1752466276179,23.24420659,166.67,166.66,0.69]
[1752466276475,16.92684554,166.67,166.66,0.69]
[1752466276692,6.31736105,166.7,166.66,0.69]
[1752466276857,16.92684554,166.69,166.66,0.69]
[1752466277775,16.92684554,166.71,166.67,6.31736105]
[1752466277972,146.7,166.76,166.68,31.87]
[1752466278165,16.78468397,166.73,166.69,7.00736105]
[1752466278473,16.78468397,166.73,166.7,0.69]
[1752466279176,6.31736105,166.74,166.7,0.69]
[1752466279177,16.78468397,166.74,166.7,0.69]
[1752466279474,27.13231837,166.74,166.7,0.69]
[1752466279778,0.14216157,166.73,166.7,0.69]
[1752466280075,16.78468397,166.78,166.71,10.3476344]
[1752466280286,26.0,166.75,166.72,31.85]
[1752466280575,26.0,166.74,166.73,0.69]
[1752466280775,10.3476344,166.8,166.73,11.0376344]
[1752466280954,16.78468397,166.79,166.75,10.3476344]
[1752466281160,0.14216157,166.78,166.76,31.87]
[1752466281384,0.14216157,166.78,166.76,31.18]
[1752466281385,26.0,166.77,166.76,31.18]
[1752466281555,0.14216157,166.78,166.76,31.18]
[1752466281756,27.13231837,166.77,166.7,25.86]
[1752466282073,10.48979597,166.76,166.71,31.87]
[1752466282257,10.48979597,166.76,166.72,0.69]
[1752466282459,10.3476344,166.75,166.72,0.69]
[1752466282980,10.3476344,166.75,166.73,0.69]
[1752466283189,36.3476344,166.75,166.74,0.69]
[1752466284785,26.0,166.75,166.74,0.69]
[1752466285869,16.78468397,166.8,166.74,11.0376344]
[1752466286083,16.78468397,166.8,166.76,10.3476344]
[1752466286382,0.14216157,166.79,166.77,0.69]
[1752466286585,0.14216157,166.79,166.76,10.3476344]
[1752466286759,0.14216157,166.79,166.78,0.69]
[1752466286955,16.78468397,166.81,166.78,0.69]
[1752466287161,0.14216157,166.8,166.79,31.85]
[1752466287891,0.14216157,166.8,166.79,0.69]
[1752466288073,11.16979597,166.8,166.79,31.16]
[1752466290888,0.82216157,166.8,166.79,31.16]
[1752466291070,11.16979597,166.8,166.79,31.16]
[1752466292367,17.1649998,166.8,166.79,31.16]
[1752466292568,26.0,166.73,166.7,26.56]
[1752466292884,10.3476344,166.72,166.7,26.56]
[1752466293690,10.3476344,166.72,166.71,31.16]
[1752466294880,10.48979597,166.72,166.71,31.16]
[1752466295078,27.27447994,166.72,166.71,31.16]
[1752466295593,16.92684554,166.76,166.71,31.83]
[1752466295791,0.14216157,166.73,166.72,0.67]
[1752466296521,10.48979597,166.73,166.72,31.16]
[1752466296686,0.67,166.78,166.72,31.83]
[1752466297002,10.3476344,166.74,166.72,31.83]
[1752466297173,0.14216157,166.76,166.72,31.16]
[1752466297174,10.48979597,166.73,166.72,31.16]
[1752466298585,36.48979597,166.73,166.72,31.16]
[1752466300381,0.67,166.79,166.72,31.83]
[1752466300578,0.14216157,166.74,166.73,0.67]
[1752466300782,36.48979597,166.74,166.73,0.67]
[1752466301321,26.14216157,166.74,166.72,31.16]
[1752466301497,26.14216157,166.74,166.72,31.83]
[1752466302302,26.14216157,166.74,166.72,31.16]
[1752466302499,26.14216157,166.74,166.73,0.67]
[1752466302701,26.0,166.74,166.73,0.67]
[1752466304403,26.0,166.74,166.73,0.67]
[1752466307898,26.0,166.74,166.73,11.0176344]
[1752466308082,26.0,166.74,166.73,0.67]
[1752466309812,26.67,166.74,166.72,31.16]
[1752466310000,26.0,166.74,166.72,31.16]
[1752466310702,26.0,166.74,166.72,31.83]
[1752466311606,26.0,166.74,166.73,0.67]
[1752466313903,4.78788503,166.82,166.73,0.67]
[1752466313904,0.73,167.01,166.76,17.96]
[1752466314093,0.73,167.01,166.94,12.69876108]
[1752466314293,4.07409944,167.01,166.94,44.35876108]
[1752466314610,0.06,167.01,166.94,44.35876108]
[1752466314816,0.06,167.01,166.99,6.34938054]
[1752466315011,0.06,167.01,166.99,38.06938054]
[1752466317101,0.06,167.01,166.99,42.02968001]
[1752466320015,0.06,167.01,166.99,31.72]
[1752466320193,26.06,167.0,166.99,31.64]
[1752466320516,11.18184158,167.0,166.99,31.64]
[1752466320820,26.0,166.96,166.92,36.16968001]
[1752466320998,26.0,166.95,166.92,36.16968001]
[1752466321198,26.7,166.95,166.92,36.16968001]
[1752466321612,10.30968001,166.97,166.92,25.86]
[1752466321803,0.7,166.94,166.92,25.86]
[1752466322120,0.7,166.94,166.93,31.64]
[1752466323318,16.92684554,166.95,166.93,31.64]
[1752466323500,22.77310746,166.99,166.94,10.30968001]
[1752466323501,0.14216157,166.98,166.94,10.30968001]
[1752466323702,0.14216157,166.98,166.95,31.62]
[1752466324021,27.23652555,166.96,166.92,25.86]
[1752466324224,10.30968001,166.95,166.93,31.68]
[1752466324419,17.62684554,166.96,166.93,31.68]
[1752466324420,27.93652555,166.96,166.93,31.68]
[1752466324717,0.7,166.95,166.93,31.68]
[1752466325216,26.7,166.95,166.93,31.68]
[1752466325621,37.00968001,166.95,166.93,31.68]
[1752466326115,10.30968001,166.94,166.93,31.68]
[1752466326617,11.00968001,166.94,166.93,31.68]
[1752466327526,10.30968001,166.94,166.93,31.64]
[1752466328522,26.0,166.94,166.93,31.64]
[1752466328717,36.30968001,166.94,166.93,31.64]
[1752466329717,26.0,166.94,166.93,31.64]
[1752466330025,36.30968001,166.94,166.93,31.64]
[1752466330227,36.36968001,166.94,166.93,31.64]
[1752466333311,0.06,166.94,166.93,31.64]
[1752466336516,0.06,166.94,166.92,25.86]
[1752466336734,0.06,166.94,166.93,31.6]
[1752466343557,0.06,166.94,166.93,31.5]
[1752466343735,11.06968001,166.94,166.93,31.5]
[1752466345133,6.75017611,166.94,166.93,31.5]
[1752466345934,0.76,166.94,166.93,31.5]
[1752466346948,11.06968001,166.94,166.93,31.5]
[1752466347340,0.76,166.94,166.93,31.5]
[1752466347547,11.06968001,166.94,166.93,31.5]
[1752466348256,33.98670166,166.94,166.93,31.5]
[1752466351454,27.99652555,166.94,166.93,31.5]
[1752466351633,17.68684554,166.94,166.93,31.5]
[1752466351951,27.99652555,166.94,166.93,31.53]
[1752466352459,36.36968001,166.94,166.93,31.53]
[1752466353064,26.06,166.94,166.93,31.53]
[1752466354934,0.06,166.94,166.93,31.53]
[1752466356065,0.06,166.94,166.93,41.83968001]
[1752466356437,0.06,166.94,166.93,31.53]
[1752466357942,0.06,166.94,166.93,41.83968001]
[1752466358144,0.06,166.94,166.93,31.53]
[1752466358577,0.06,166.94,166.93,41.83968001]
[1752466358951,0.06,166.94,166.93,37.86002618]
[1752466360647,0.06,166.95,166.94,6.2197]
[1752466360851,0.06,166.95,166.94,12.54972618]
[1752466361144,0.06,166.95,166.94,16.53113568]
[1752466365468,0.06,166.95,166.94,17.13015329]
[1752466365850,0.06,166.95,166.94,16.53113568]
[1752466369247,0.06,166.95,166.94,112.74654554]
[1752466369452,0.06,166.95,166.94,137.37113568]
[1752466370475,0.06,166.95,166.94,154.29798122]
[1752466372474,0.06,166.95,166.94,143.98654554]
[1752466372659,0.06,166.95,166.94,154.29798122]
[1752466372856,0.06,166.95,166.94,137.37113568]
[1752466373065,0.06,166.95,166.94,47.77113568]
[1752466373271,0.06,166.95,166.94,64.69798122]
[1752466373475,0.06,167.0,166.95,16.92684554]
[1752466373774,0.06,167.0,166.99,10.31143568]
[1752466374074,0.06,167.0,166.99,41.53143568]
[1752466376178,0.72,167.0,166.99,31.2]
[1752466377560,0.72,167.0,166.99,41.51143568]
[1752466379762,0.06,167.0,166.99,31.2]
[1752466379983,0.06,167.0,166.99,41.51143568]
[1752466380481,0.06,167.0,166.99,41.49143568]
[1752466380674,0.72,167.0,166.99,31.16]
[1752466380982,0.72,167.0,166.99,41.47143568]
[1752466380983,0.06,167.0,166.99,41.47143568]
[1752466382878,0.06,167.0,166.99,58.39828122]
[1752466383181,0.06,167.01,166.99,55.00782834]
[1752466383382,0.06,167.01,167.0,6.32214455]
[1752466384483,0.06,167.01,167.0,37.48214455]
[1752466387887,0.06,167.01,167.0,127.08214455]
[1752466390591,0.06,167.01,167.0,144.00899009]
[1752466392384,0.06,167.02,167.0,152.87746672]
[1752466392709,0.06,167.02,167.01,6.32214455]
[1752466392867,0.06,167.02,167.01,119.17113464]
[1752466393076,0.06,167.07,167.06,6.32214455]
[1752466393370,0.06,167.07,167.06,37.48214455]
[1752466394280,0.06,167.07,167.06,127.08214455]
[1752466394600,0.06,167.07,167.06,144.00899009]
[1752466394816,0.06,167.08,167.07,16.92684554]
[1752466394966,0.06,167.08,167.07,23.24899009]
[1752466396373,0.1,167.12,167.1,26.0]
[1752466396590,0.1,167.12,167.11,63.90055278]
[1752466397976,0.1,167.12,167.11,80.82739832]
[1752466398184,0.1,167.12,167.11,80.22899009]
[1752466398390,0.1,167.12,167.11,49.06899009]
[1752466398579,0.1,167.12,167.11,80.20899009]
[1752466399787,0.1,167.12,167.11,86.53113464]
[1752466400389,0.06,167.14,167.13,29.57113464]
[1752466400592,0.06,167.17,167.14,16.92684554]
[1752466400893,0.06,167.17,167.16,6.32214455]
[1752466402404,0.06,167.17,167.16,37.46214455]
[1752466402778,0.06,167.17,167.16,54.38899009]
[1752466403488,0.06,167.17,167.16,23.24899009]
[1752466403685,0.06,167.17,167.16,54.38899009]
[1752466404002,0.06,167.17,167.16,143.98899009]
[1752466404183,0.06,167.17,167.16,23.24899009]
[1752466404397,0.06,167.17,167.16,54.38899009]
[1752466404777,0.06,167.17,167.16,37.46214455]
[1752466409483,0.06,167.17,167.16,127.06214455]
[1752466409689,0.06,167.17,167.16,37.46214455]
[1752466409885,0.06,167.17,167.16,6.32214455]
[1752466410114,0.06,167.17,167.16,127.04214455]
[1752466410306,0.06,167.17,167.16,54.36899009]
[1752466410507,0.06,167.17,167.16,144.56721933]
[1752466410690,0.06,167.17,167.16,54.36899009]
[1752466410890,0.06,167.17,167.16,54.96721933]
[1752466411316,0.06,167.17,167.16,144.56721933]
[1752466411518,0.06,167.17,167.16,169.96899009]
[1752466411822,0.1,167.18,167.16,99.23746672]
[1752466412003,0.1,167.18,167.17,15.19062118]
[1752466412389,0.1,167.18,167.17,15.78881463]
[1752466412991,0.1,167.18,167.17,9.46667008]
[1752466413211,0.1,167.18,167.17,15.78881463]
[1752466415193,0.1,167.18,167.17,122.31566017]
[1752466415528,0.1,167.2,167.17,121.71746672]
[1752466415690,0.1,167.2,167.19,23.24899009]
[1752466416115,0.1,167.2,167.19,32.11746672]
[1752466416714,0.1,167.2,167.19,6.32214455]
[1752466416951,0.78,167.2,167.19,37.44214455]
[1752466418313,0.78,167.2,167.17,16.78468397]
[1752466418619,0.68,167.19,167.18,31.12]
[1752466418794,0.68,167.19,167.18,37.44214455]
[1752466420806,0.1,167.2,167.18,37.44214455]
[1752466421008,0.68,167.19,167.17,6.32214455]
[1752466421226,0.68,167.19,167.15,16.78468397]
[1752466421423,0.68,167.19,167.16,37.44214455]
[1752466421633,0.1,167.2,167.17,6.32214455]
[1752466421846,0.68,167.18,167.17,6.32214455]
[1752466422108,0.1,167.31,167.19,34.74468397]
[1752466422309,0.1,167.31,167.25,28.45764554]
[1752466422524,0.78,167.31,167.25,81.89979009]
[1752466422730,0.78,167.31,167.25,80.36899009]
[1752466423809,0.78,167.31,167.25,49.24899009]
[1752466424011,0.78,167.29,167.25,6.32214455]
[1752466424236,0.68,167.28,167.25,37.44214455]
[1752466424730,0.68,167.28,167.23,42.92684554]
[1752466424731,0.74,167.26,167.23,26.0]
[1752466424934,0.68,167.25,167.24,31.12]
[1752466425234,0.68,167.25,167.24,37.44214455]
[1752466425615,0.68,167.25,167.24,31.12]
[1752466425813,0.68,167.25,167.2,8.86847663]
[1752466426014,0.68,167.25,167.22,6.32214455]
[1752466426340,0.68,167.25,167.23,31.1]
[1752466427535,10.96191459,167.25,167.18,16.78468397]
[1752466427715,10.96191459,167.24,167.19,31.1]
[1752466427913,0.68,167.23,167.19,31.1]
[1752466428128,11.83171459,167.22,167.2,31.1]
[1752466428437,0.68,167.21,167.16,10.28191459]
[1752466428610,0.68,167.21,167.17,31.1]
[1752466428814,0.68,167.21,167.17,41.38191459]
[1752466429321,0.68,167.2,167.19,10.28191459]
[1752466429524,0.68,167.2,167.19,41.38191459]
[1752466432444,0.68,167.2,167.19,31.1]
[1752466443733,0.68,167.2,167.19,41.38191459]
[1752466443940,0.68,167.2,167.19,31.1]
[1752466444133,0.68,167.2,167.19,41.38191459]
[1752466444735,0.68,167.2,167.19,31.1]
[1752466447238,0.68,167.2,167.19,57.1]
[1752466448240,0.68,167.2,167.19,67.38191459]
[1752466448439,0.78,167.24,167.22,26.0]
[1752466448755,0.06,167.24,167.23,41.38191459]
[1752466448933,0.06,167.24,167.23,37.407027]
[1752466449133,0.06,167.24,167.23,105.97171097]
[1752466451048,0.06,167.24,167.23,106.11387254]
[1752466451557,0.06,167.24,167.23,106.71185137]
[1752466452553,0.06,167.26,167.24,16.92684554]
[1752466452737,0.06,167.26,167.25,64.00493432]
[1752466453334,0.06,167.26,167.25,26.59790732]
[1752466453547,0.06,167.26,167.25,63.407027]
[1752466453758,0.06,167.26,167.25,73.88468397]
[1752466453968,0.06,167.26,167.25,80.19171097]
[1752466455866,0.06,167.26,167.25,169.79171097]
[1752466457363,0.06,167.26,167.25,163.48468397]
[1752466458352,0.78,167.26,167.24,89.6]
[1752466458550,0.06,167.26,167.25,31.08]
[1752466459151,0.78,167.26,167.25,31.08]
[1752466460365,0.06,167.26,167.25,31.08]
[1752466461768,7.087027,167.26,167.25,31.08]
[1752466464580,0.78,167.26,167.25,31.08]
[1752466464954,7.087027,167.26,167.25,31.08]
[1752466469159,0.78,167.26,167.25,31.08]
[1752466469364,7.087027,167.26,167.25,31.08]
[1752466470568,0.06,167.26,167.25,31.08]
[1752466470782,7.087027,167.26,167.25,31.08]
[1752466474577,0.78,167.26,167.25,31.08]
[1752466474879,7.047027,167.26,167.25,31.08]
[1752466479380,7.047027,167.26,167.23,25.78]
[1752466479574,6.307027,167.24,167.23,25.78]